[Event "Titled Tuesday Blitz December 27 Early 2022"]
[White "Mikhailovsky, Vladimir"]
[Black "Ovchinnikov, Vsevolod"]
[WhiteFideId "34105414"]
[BlackFideId "24176842"]
[WhiteElo "2215"]
[BlackElo "2426"]
[Result "1-0"]
[Round "07"]
[TimeControl "180+2"]
[Date "2022.12.27"]
[WhiteClock "0:00:07"]
[BlackClock "0:00:01"]

1. d4 {[%clk 0:03:00]}  Nf6 {[%clk 0:03:00]} 2. c4 {[%clk 0:03:00]}  g6 {[%clk 0:03:00]} 3. Nc3 {[%clk 0:02:59]}  d5 {[%clk 0:03:01]} 4. cxd5 {[%clk 0:02:59]}  Nxd5 {[%clk 0:03:02]} 5. e4 {[%clk 0:03:00]}  Nxc3 {[%clk 0:03:02]} 6. bxc3 {[%clk 0:03:01]}  Bg7 {[%clk 0:03:03]} 7. Nf3 {[%clk 0:03:01]}  c5 {[%clk 0:03:03]} 8. h3 {[%clk 0:03:01]}  O-O {[%clk 0:03:02]} 9. Be2 {[%clk 0:03:02]}  Nc6 {[%clk 0:03:00]} 10. Be3 {[%clk 0:03:02]}  Bd7 {[%clk 0:02:54]} 11. O-O {[%clk 0:03:00]}  Rc8 {[%clk 0:02:54]} 12. d5 {[%clk 0:02:49]}  Na5 {[%clk 0:02:53]} 13. Rc1 {[%clk 0:02:40]}  e6 {[%clk 0:02:51]} 14. c4 {[%clk 0:02:33]}  Re8 {[%clk 0:02:46]} 15. Qc2 {[%clk 0:01:57]}  Qe7 {[%clk 0:01:48]} 16. Bd2 {[%clk 0:01:29]}  b6 {[%clk 0:01:48]} 17. Bxa5 {[%clk 0:01:30]}  bxa5 {[%clk 0:01:49]} 18. Nd2 {[%clk 0:01:06]}  Rb8 {[%clk 0:01:43]} 19. Rb1 {[%clk 0:00:56]}  Qd6 {[%clk 0:00:57]} 20. f4 {[%clk 0:00:30]}  Rxb1 {[%clk 0:00:32]} 21. Nxb1 {[%clk 0:00:31]}  Bd4+ {[%clk 0:00:29]} 22. Kh1 {[%clk 0:00:31]}  Rb8 {[%clk 0:00:29]} 23. Nc3 {[%clk 0:00:21]}  Qb6 {[%clk 0:00:15]} 24. Rb1 {[%clk 0:00:20]}  Qc7 {[%clk 0:00:15]} 25. Rxb8+ {[%clk 0:00:16]}  Qxb8 {[%clk 0:00:16]} 26. e5 {[%clk 0:00:16]}  Qb4 {[%clk 0:00:12]} 27. Ne4 {[%clk 0:00:07]}  Qe1+ {[%clk 0:00:12]} 28. Kh2 {[%clk 0:00:08]}  Bg1+ {[%clk 0:00:10]} 29. Kh1 {[%clk 0:00:08]}  Be3+ {[%clk 0:00:10]} 30. Kh2 {[%clk 0:00:09]}  Bxf4+ {[%clk 0:00:11]} 31. g3 {[%clk 0:00:09]}  Bxe5 {[%clk 0:00:11]} 32. Bf3 {[%clk 0:00:06]}  Kg7 {[%clk 0:00:09]} 33. Qg2 {[%clk 0:00:05]}  exd5 {[%clk 0:00:08]} 34. Nxc5 {[%clk 0:00:05]}  Bc8 {[%clk 0:00:07]} 35. Bxd5 {[%clk 0:00:05]}  Qe3 {[%clk 0:00:06]} 36. Ne4 {[%clk 0:00:05]}  f5 {[%clk 0:00:05]} 37. Nd2 {[%clk 0:00:05]}  a4 {[%clk 0:00:04]} 38. Nf3 {[%clk 0:00:05]}  Bd6 {[%clk 0:00:03]} 39. Qb2+ {[%clk 0:00:04]}  Kh6 {[%clk 0:00:04]} 40. Qg2 {[%clk 0:00:04]}  a3 {[%clk 0:00:04]} 41. h4 {[%clk 0:00:04]}  Bd7 {[%clk 0:00:04]} 42. Ng5 {[%clk 0:00:05]}  Qd4 {[%clk 0:00:03]} 43. Nf7+ {[%clk 0:00:05]}  Kg7 {[%clk 0:00:03]} 44. Nxd6 {[%clk 0:00:06]}  f4 {[%clk 0:00:03]} 45. Nb7 {[%clk 0:00:05]}  fxg3+ {[%clk 0:00:03]} 46. Qxg3 {[%clk 0:00:05]}  Qb2+ {[%clk 0:00:02]} 47. Bg2 {[%clk 0:00:06]}  Qxa2 {[%clk 0:00:01]} 48. Qe5+ {[%clk 0:00:06]}  Kh6 {[%clk 0:00:01]} 49. Nd6 {[%clk 0:00:07]} 1-0


[Site "https://www.chess.com"]

[Event "Titled Tuesday Blitz December 27 Early 2022"]
[White "Movahed, Sina"]
[Black "Bok, Benjamin"]
[WhiteFideId "42520835"]
[BlackFideId "1017063"]
[WhiteElo "2340"]
[BlackElo "2607"]
[Result "0-1"]
[Round "07"]
[TimeControl "180+2"]
[Date "2022.12.27"]
[WhiteClock "0:00:06"]
[BlackClock "0:00:08"]

1. Nf3 {[%clk 0:03:00]}  d5 {[%clk 0:02:59]} 2. g3 {[%clk 0:03:00]}  c6 {[%clk 0:02:58]} 3. Bg2 {[%clk 0:03:01]}  Bg4 {[%clk 0:02:56]} 4. O-O {[%clk 0:03:01]}  Nd7 {[%clk 0:02:53]} 5. d3 {[%clk 0:02:54]}  Ngf6 {[%clk 0:02:52]} 6. Qe1 {[%clk 0:02:53]}  e5 {[%clk 0:02:51]} 7. Nbd2 {[%clk 0:02:51]}  Bd6 {[%clk 0:02:44]} 8. e4 {[%clk 0:02:50]}  O-O {[%clk 0:02:41]} 9. h3 {[%clk 0:02:50]}  Bh5 {[%clk 0:02:41]} 10. Nh4 {[%clk 0:02:50]}  Re8 {[%clk 0:02:24]} 11. g4 {[%clk 0:02:45]}  Bg6 {[%clk 0:02:21]} 12. Nf5 {[%clk 0:02:45]}  Bf8 {[%clk 0:02:19]} 13. Nf3 {[%clk 0:02:38]}  dxe4 {[%clk 0:02:15]} 14. dxe4 {[%clk 0:02:39]}  Nc5 {[%clk 0:02:16]} 15. N3h4 {[%clk 0:02:38]}  Ne6 {[%clk 0:02:08]} 16. c3 {[%clk 0:02:21]}  Nd7 {[%clk 0:02:00]} 17. Nf3 {[%clk 0:02:18]}  f6 {[%clk 0:01:55]} 18. Qe2 {[%clk 0:02:15]}  Qc7 {[%clk 0:01:52]} 19. Rd1 {[%clk 0:02:12]}  Rad8 {[%clk 0:01:51]} 20. h4 {[%clk 0:02:12]}  Bf7 {[%clk 0:01:49]} 21. g5 {[%clk 0:02:10]}  g6 {[%clk 0:01:46]} 22. Ng3 {[%clk 0:02:00]}  Nf4 {[%clk 0:01:45]} 23. Bxf4 {[%clk 0:01:53]}  exf4 {[%clk 0:01:46]} 24. Nf1 {[%clk 0:01:53]}  f5 {[%clk 0:01:39]} 25. N1d2 {[%clk 0:01:45]}  Nc5 {[%clk 0:01:21]} 26. e5 {[%clk 0:01:34]}  Nd3 {[%clk 0:01:19]} 27. Nb3 {[%clk 0:01:15]}  Nxe5 {[%clk 0:01:18]} 28. Nxe5 {[%clk 0:01:11]}  Rxe5 {[%clk 0:01:14]} 29. Qc2 {[%clk 0:01:07]}  Rde8 {[%clk 0:01:08]} 30. Bf3 {[%clk 0:01:05]}  Qe7 {[%clk 0:01:04]} 31. Nd4 {[%clk 0:01:03]}  h6 {[%clk 0:01:04]} 32. Bg2 {[%clk 0:00:49]}  hxg5 {[%clk 0:01:03]} 33. hxg5 {[%clk 0:00:49]}  Bg7 {[%clk 0:00:46]} 34. Qd3 {[%clk 0:00:44]}  c5 {[%clk 0:00:38]} 35. Nf3 {[%clk 0:00:44]}  Re2 {[%clk 0:00:39]} 36. Re1 {[%clk 0:00:43]}  c4 {[%clk 0:00:34]} 37. Rxe2 {[%clk 0:00:22]}  Qxe2 {[%clk 0:00:35]} 38. Qd7 {[%clk 0:00:21]}  Qxb2 {[%clk 0:00:34]} 39. Rd1 {[%clk 0:00:21]}  Qxc3 {[%clk 0:00:23]} 40. Qc7 {[%clk 0:00:20]}  Qb2 {[%clk 0:00:13]} 41. Rd7 {[%clk 0:00:19]}  Be6 {[%clk 0:00:13]} 42. Rd6 {[%clk 0:00:19]}  c3 {[%clk 0:00:08]} 43. Rxe6 {[%clk 0:00:12]}  Rxe6 {[%clk 0:00:09]} 44. Qc8+ {[%clk 0:00:11]}  Kh7 {[%clk 0:00:08]} 45. Qxe6 {[%clk 0:00:09]}  c2 {[%clk 0:00:08]} 46. Nh4 {[%clk 0:00:05]}  c1=Q+ {[%clk 0:00:09]} 47. Kh2 {[%clk 0:00:06]}  Qb6 {[%clk 0:00:09]} 48. Qf7 {[%clk 0:00:07]}  f3 {[%clk 0:00:09]} 49. Nxf3 {[%clk 0:00:06]}  Qf4+ {[%clk 0:00:09]} 50. Kg1 {[%clk 0:00:06]}  Qb1+ {[%clk 0:00:08]} 0-1


[Site "https://www.chess.com"]

[Event "Titled Tuesday Blitz December 27 Early 2022"]
[White "Najdin, Danil"]
[Black "Diaz, Fernando"]
[WhiteFideId "4172426"]
[BlackFideId "3701255"]
[WhiteElo "2235"]
[BlackElo "2121"]
[Result "1-0"]
[Round "07"]
[TimeControl "180+2"]
[Date "2022.12.27"]
[WhiteClock "0:00:20"]
[BlackClock "0:00:08"]

1. e4 {[%clk 0:02:53]}  e6 {[%clk 0:02:58]} 2. d4 {[%clk 0:02:52]}  d5 {[%clk 0:02:57]} 3. Nd2 {[%clk 0:02:52]}  Nf6 {[%clk 0:02:53]} 4. e5 {[%clk 0:02:53]}  Nfd7 {[%clk 0:02:52]} 5. Bd3 {[%clk 0:02:53]}  c5 {[%clk 0:02:46]} 6. c3 {[%clk 0:02:54]}  Nc6 {[%clk 0:02:46]} 7. Ne2 {[%clk 0:02:54]}  c4 {[%clk 0:02:45]} 8. Bc2 {[%clk 0:02:53]}  f5 {[%clk 0:02:43]} 9. exf6 {[%clk 0:02:34]}  Nxf6 {[%clk 0:02:43]} 10. Nf3 {[%clk 0:02:31]}  Bd6 {[%clk 0:02:44]} 11. Bf4 {[%clk 0:02:31]}  Qc7 {[%clk 0:02:44]} 12. Bxd6 {[%clk 0:02:19]}  Qxd6 {[%clk 0:02:44]} 13. O-O {[%clk 0:02:20]}  O-O {[%clk 0:02:45]} 14. Qd2 {[%clk 0:02:14]}  e5 {[%clk 0:02:45]} 15. dxe5 {[%clk 0:02:12]}  Nxe5 {[%clk 0:02:46]} 16. Nxe5 {[%clk 0:02:06]}  Qxe5 {[%clk 0:02:46]} 17. Rad1 {[%clk 0:01:51]}  Be6 {[%clk 0:02:29]} 18. Rfe1 {[%clk 0:01:41]}  Ng4 {[%clk 0:02:08]} 19. Ng3 {[%clk 0:01:25]}  Qf6 {[%clk 0:02:03]} 20. f3 {[%clk 0:01:24]}  Nh6 {[%clk 0:01:18]} 21. Nh5 {[%clk 0:01:22]}  Qf7 {[%clk 0:01:15]} 22. Nxg7 {[%clk 0:01:10]}  Kxg7 {[%clk 0:01:14]} 23. Qg5+ {[%clk 0:01:09]}  Kh8 {[%clk 0:01:10]} 24. Qe5+ {[%clk 0:00:58]}  Qg7 {[%clk 0:01:05]} 25. Qxg7+ {[%clk 0:00:53]}  Kxg7 {[%clk 0:01:06]} 26. Rxe6 {[%clk 0:00:53]}  Rfe8 {[%clk 0:01:03]} 27. Rxe8 {[%clk 0:00:42]}  Rxe8 {[%clk 0:01:04]} 28. Kf2 {[%clk 0:00:43]}  Re5 {[%clk 0:00:59]} 29. f4 {[%clk 0:00:43]}  Rh5 {[%clk 0:00:56]} 30. h3 {[%clk 0:00:42]}  Nf7 {[%clk 0:00:51]} 31. Kf3 {[%clk 0:00:31]}  Nd6 {[%clk 0:00:45]} 32. Kg4 {[%clk 0:00:31]}  Rh6 {[%clk 0:00:39]} 33. Rxd5 {[%clk 0:00:31]}  Rf6 {[%clk 0:00:36]} 34. h4 {[%clk 0:00:30]}  Nf7 {[%clk 0:00:12]} 35. Rd7 {[%clk 0:00:28]}  Kf8 {[%clk 0:00:12]} 36. Bxh7 {[%clk 0:00:26]}  Rh6 {[%clk 0:00:08]} 37. Be4 {[%clk 0:00:22]}  Rb6 {[%clk 0:00:08]} 38. Rxb7 {[%clk 0:00:22]}  Rxb7 {[%clk 0:00:08]} 39. Bxb7 {[%clk 0:00:22]}  Nd6 {[%clk 0:00:09]} 40. Bd5 {[%clk 0:00:21]}  Ke7 {[%clk 0:00:08]} 41. Kg5 {[%clk 0:00:20]} 1-0


[Site "https://www.chess.com"]

[Event "Titled Tuesday Blitz December 27 Early 2022"]
[White "Narayanan.S.L"]
[Black "Kilic, Eray"]
[WhiteFideId "5058422"]
[BlackFideId "44517173"]
[WhiteElo "2660"]
[BlackElo "2414"]
[Result "0-1"]
[Round "07"]
[TimeControl "180+2"]
[Date "2022.12.27"]
[WhiteClock "0:00:01"]
[BlackClock "0:00:20"]

1. c4 {[%clk 0:02:57]}  e5 {[%clk 0:02:59]} 2. Nc3 {[%clk 0:02:56]}  Nc6 {[%clk 0:02:59]} 3. Nf3 {[%clk 0:02:56]}  g6 {[%clk 0:02:59]} 4. g3 {[%clk 0:02:54]}  Bg7 {[%clk 0:02:59]} 5. Bg2 {[%clk 0:02:54]}  Nge7 {[%clk 0:02:59]} 6. O-O {[%clk 0:02:55]}  O-O {[%clk 0:03:00]} 7. d3 {[%clk 0:02:53]}  d6 {[%clk 0:02:59]} 8. Rb1 {[%clk 0:02:52]}  h6 {[%clk 0:02:58]} 9. b4 {[%clk 0:02:51]}  Nd4 {[%clk 0:02:55]} 10. e3 {[%clk 0:02:49]}  Nxf3+ {[%clk 0:02:53]} 11. Bxf3 {[%clk 0:02:50]}  c6 {[%clk 0:02:42]} 12. b5 {[%clk 0:02:48]}  Bh3 {[%clk 0:02:39]} 13. Re1 {[%clk 0:02:47]}  d5 {[%clk 0:02:30]} 14. bxc6 {[%clk 0:02:44]}  bxc6 {[%clk 0:02:29]} 15. cxd5 {[%clk 0:02:37]}  Nxd5 {[%clk 0:02:27]} 16. Na4 {[%clk 0:01:51]}  Qd6 {[%clk 0:01:55]} 17. Rb3 {[%clk 0:01:37]}  Rfb8 {[%clk 0:01:45]} 18. Ba3 {[%clk 0:01:36]}  Qd8 {[%clk 0:01:43]} 19. e4 {[%clk 0:01:25]}  Nc7 {[%clk 0:01:37]} 20. Bb2 {[%clk 0:01:08]}  Be6 {[%clk 0:01:36]} 21. Rxb8 {[%clk 0:01:06]}  Rxb8 {[%clk 0:01:37]} 22. Be2 {[%clk 0:00:47]}  Bxa2 {[%clk 0:01:33]} 23. Qa1 {[%clk 0:00:46]}  Bb3 {[%clk 0:01:03]} 24. Nc5 {[%clk 0:00:45]}  Ne6 {[%clk 0:01:03]} 25. Nxe6 {[%clk 0:00:42]}  Bxe6 {[%clk 0:01:03]} 26. Bxe5 {[%clk 0:00:41]}  Bxe5 {[%clk 0:01:03]} 27. Qxe5 {[%clk 0:00:42]}  Rb5 {[%clk 0:00:59]} 28. Qc3 {[%clk 0:00:40]}  Qb6 {[%clk 0:00:58]} 29. Bf1 {[%clk 0:00:34]}  Rb3 {[%clk 0:00:50]} 30. Qf6 {[%clk 0:00:31]}  c5 {[%clk 0:00:44]} 31. h4 {[%clk 0:00:19]}  h5 {[%clk 0:00:43]} 32. Qf4 {[%clk 0:00:15]}  a5 {[%clk 0:00:38]} 33. Ra1 {[%clk 0:00:15]}  Rb2 {[%clk 0:00:36]} 34. Qe3 {[%clk 0:00:05]}  Qb4 {[%clk 0:00:35]} 35. Bg2 {[%clk 0:00:02]}  a4 {[%clk 0:00:34]} 36. e5 {[%clk 0:00:01]}  a3 {[%clk 0:00:31]} 37. Kh2 {[%clk 0:00:01]}  a2 {[%clk 0:00:29]} 38. Qg5 {[%clk 0:00:01]}  Rxf2 {[%clk 0:00:22]} 39. Qd8+ {[%clk 0:00:01]}  Kg7 {[%clk 0:00:22]} 40. Qa8 {[%clk 0:00:01]}  Qb2 {[%clk 0:00:20]} 0-1


[Site "https://www.chess.com"]

[Event "Titled Tuesday Blitz December 27 Early 2022"]
[White "Omariev, Maksim"]
[Black "Bashirli, Saadat"]
[WhiteFideId "4193423"]
[BlackFideId "13429990"]
[WhiteElo "2304"]
[BlackElo "1571"]
[Result "1-0"]
[Round "07"]
[TimeControl "180+2"]
[Date "2022.12.27"]
[WhiteClock "0:00:08"]
[BlackClock "0:00:12"]

1. g4 {[%clk 0:02:44]}  d5 {[%clk 0:02:58]} 2. Bg2 {[%clk 0:02:42]}  Bxg4 {[%clk 0:02:57]} 3. c4 {[%clk 0:02:42]}  e6 {[%clk 0:02:54]} 4. Qb3 {[%clk 0:02:42]}  Bc5 {[%clk 0:02:37]} 5. cxd5 {[%clk 0:02:33]}  exd5 {[%clk 0:02:30]} 6. Qxb7 {[%clk 0:01:34]}  Nd7 {[%clk 0:02:17]} 7. Qxd5 {[%clk 0:01:31]}  Rb8 {[%clk 0:02:05]} 8. Qe4+ {[%clk 0:01:25]}  Be6 {[%clk 0:02:03]} 9. d4 {[%clk 0:01:22]}  Bb4+ {[%clk 0:02:00]} 10. Nc3 {[%clk 0:01:16]}  Ngf6 {[%clk 0:01:56]} 11. Qh4 {[%clk 0:01:16]}  O-O {[%clk 0:01:38]} 12. Nf3 {[%clk 0:01:16]}  c5 {[%clk 0:01:28]} 13. O-O {[%clk 0:01:11]}  cxd4 {[%clk 0:01:18]} 14. Nxd4 {[%clk 0:01:12]}  Bxc3 {[%clk 0:01:11]} 15. Nc6 {[%clk 0:00:48]}  Qc7 {[%clk 0:00:57]} 16. Nxb8 {[%clk 0:00:41]}  Rxb8 {[%clk 0:00:50]} 17. bxc3 {[%clk 0:00:39]}  Qxc3 {[%clk 0:00:48]} 18. Bf4 {[%clk 0:00:38]}  Re8 {[%clk 0:00:43]} 19. Rfc1 {[%clk 0:00:36]}  Qb2 {[%clk 0:00:35]} 20. e3 {[%clk 0:00:26]}  Ng4 {[%clk 0:00:26]} 21. a4 {[%clk 0:00:17]}  Ndf6 {[%clk 0:00:22]} 22. Bg3 {[%clk 0:00:16]}  Qd2 {[%clk 0:00:18]} 23. Qg5 {[%clk 0:00:14]}  h6 {[%clk 0:00:17]} 24. Qc5 {[%clk 0:00:10]}  a6 {[%clk 0:00:13]} 25. h3 {[%clk 0:00:10]}  Rc8 {[%clk 0:00:06]} 26. Qa3 {[%clk 0:00:04]}  Rxc1+ {[%clk 0:00:04]} 27. Qxc1 {[%clk 0:00:04]}  Qd7 {[%clk 0:00:01]} 28. hxg4 {[%clk 0:00:04]}  Nxg4 {[%clk 0:00:02]} 29. Qc7 {[%clk 0:00:04]}  Qd3 {[%clk 0:00:02]} 30. Qf4 {[%clk 0:00:03]}  Qe2 {[%clk 0:00:02]} 31. Rc1 {[%clk 0:00:03]}  g6 {[%clk 0:00:01]} 32. a5 {[%clk 0:00:03]}  Kg7 {[%clk 0:00:02]} 33. Qd4+ {[%clk 0:00:03]}  f6 {[%clk 0:00:02]} 34. Qa7+ {[%clk 0:00:02]}  Bf7 {[%clk 0:00:02]} 35. Qd4 {[%clk 0:00:02]}  Ne5 {[%clk 0:00:03]} 36. Qc3 {[%clk 0:00:02]}  Qb5 {[%clk 0:00:03]} 37. Bf1 {[%clk 0:00:02]}  Qa4 {[%clk 0:00:03]} 38. Bg2 {[%clk 0:00:02]}  Qg4 {[%clk 0:00:04]} 39. Bxe5 {[%clk 0:00:02]}  fxe5 {[%clk 0:00:04]} 40. Qxe5+ {[%clk 0:00:03]}  Kh7 {[%clk 0:00:04]} 41. Rc7 {[%clk 0:00:03]}  Kg8 {[%clk 0:00:02]} 42. Rc5 {[%clk 0:00:02]}  Qh4 {[%clk 0:00:02]} 43. Qg3 {[%clk 0:00:01]}  Qd8 {[%clk 0:00:02]} 44. Qe5 {[%clk 0:00:01]}  Qd1+ {[%clk 0:00:03]} 45. Kh2 {[%clk 0:00:01]}  Qd8 {[%clk 0:00:03]} 46. Bf3 {[%clk 0:00:01]}  Qh4+ {[%clk 0:00:04]} 47. Kg2 {[%clk 0:00:01]}  Qd8 {[%clk 0:00:04]} 48. Rc7 {[%clk 0:00:01]}  h5 {[%clk 0:00:05]} 49. Qc5 {[%clk 0:00:01]}  Qe8 {[%clk 0:00:06]} 50. Rc8 {[%clk 0:00:01]}  Qxc8 {[%clk 0:00:04]} 51. Qxc8+ {[%clk 0:00:02]}  Kg7 {[%clk 0:00:05]} 52. Qxa6 {[%clk 0:00:03]}  h4 {[%clk 0:00:06]} 53. Qb6 {[%clk 0:00:04]}  h3+ {[%clk 0:00:07]} 54. Kh2 {[%clk 0:00:03]}  Be8 {[%clk 0:00:08]} 55. a6 {[%clk 0:00:04]}  Bd7 {[%clk 0:00:08]} 56. a7 {[%clk 0:00:05]}  g5 {[%clk 0:00:09]} 57. Qc7 {[%clk 0:00:05]}  g4 {[%clk 0:00:10]} 58. Qxd7+ {[%clk 0:00:05]}  Kg6 {[%clk 0:00:11]} 59. Qxg4+ {[%clk 0:00:06]}  Kh6 {[%clk 0:00:11]} 60. Qxh3+ {[%clk 0:00:07]}  Kg6 {[%clk 0:00:11]} 61. Qg4+ {[%clk 0:00:08]}  Kh6 {[%clk 0:00:12]} 62. a8=Q {[%clk 0:00:07]}  Kh7 {[%clk 0:00:11]} 63. Qag8+ {[%clk 0:00:07]}  Kh6 {[%clk 0:00:12]} 64. Q8g6# {[%clk 0:00:08]} 1-0


[Site "https://www.chess.com"]

[Event "Titled Tuesday Blitz December 27 Early 2022"]
[White "Orujov, Elshad"]
[Black "Zaichenko, Daria"]
[WhiteFideId "13403540"]
[BlackFideId "4197453"]
[WhiteElo "2304"]
[BlackElo "2104"]
[Result "1-0"]
[Round "07"]
[TimeControl "180+2"]
[Date "2022.12.27"]
[WhiteClock "0:00:04"]
[BlackClock "0:00:01"]

1. e4 {[%clk 0:03:00]}  c5 {[%clk 0:02:59]} 2. Nf3 {[%clk 0:03:00]}  Nc6 {[%clk 0:02:59]} 3. d4 {[%clk 0:02:51]}  cxd4 {[%clk 0:02:59]} 4. Nxd4 {[%clk 0:02:50]}  Nf6 {[%clk 0:02:59]} 5. Nc3 {[%clk 0:02:49]}  d6 {[%clk 0:02:59]} 6. Bg5 {[%clk 0:02:49]}  e6 {[%clk 0:02:56]} 7. Qd2 {[%clk 0:02:49]}  a6 {[%clk 0:02:56]} 8. O-O-O {[%clk 0:02:49]}  Bd7 {[%clk 0:02:56]} 9. f4 {[%clk 0:02:49]}  Be7 {[%clk 0:02:56]} 10. Nf3 {[%clk 0:02:49]}  b5 {[%clk 0:02:48]} 11. e5 {[%clk 0:02:49]}  dxe5 {[%clk 0:02:36]} 12. fxe5 {[%clk 0:02:45]}  Nd5 {[%clk 0:02:16]} 13. Nxd5 {[%clk 0:02:31]}  Bxg5 {[%clk 0:02:15]} 14. Qxg5 {[%clk 0:02:32]}  Qxg5+ {[%clk 0:02:04]} 15. Nxg5 {[%clk 0:02:32]}  exd5 {[%clk 0:02:04]} 16. Rxd5 {[%clk 0:02:33]}  h6 {[%clk 0:01:44]} 17. Nxf7 {[%clk 0:02:32]}  Be6 {[%clk 0:01:38]} 18. Nd6+ {[%clk 0:02:22]}  Ke7 {[%clk 0:01:37]} 19. Rd2 {[%clk 0:02:22]}  Nxe5 {[%clk 0:01:35]} 20. Be2 {[%clk 0:02:02]}  Rad8 {[%clk 0:01:27]} 21. Rhd1 {[%clk 0:02:01]}  Rhf8 {[%clk 0:01:13]} 22. Bf3 {[%clk 0:01:50]}  Nxf3 {[%clk 0:01:08]} 23. gxf3 {[%clk 0:01:43]}  Rd7 {[%clk 0:01:06]} 24. Rd3 {[%clk 0:01:41]}  Rfd8 {[%clk 0:01:01]} 25. Ne4 {[%clk 0:01:41]}  Rxd3 {[%clk 0:01:00]} 26. Rxd3 {[%clk 0:01:41]}  Rxd3 {[%clk 0:01:00]} 27. cxd3 {[%clk 0:01:41]}  Bxa2 {[%clk 0:00:59]} 28. Nc5 {[%clk 0:01:41]}  Bd5 {[%clk 0:00:58]} 29. f4 {[%clk 0:01:32]}  a5 {[%clk 0:00:56]} 30. Kd2 {[%clk 0:01:23]}  g5 {[%clk 0:00:48]} 31. fxg5 {[%clk 0:01:21]}  hxg5 {[%clk 0:00:47]} 32. Ke3 {[%clk 0:01:17]}  Kd6 {[%clk 0:00:37]} 33. d4 {[%clk 0:01:16]}  a4 {[%clk 0:00:22]} 34. Kf2 {[%clk 0:01:14]}  Bc6 {[%clk 0:00:19]} 35. Kg3 {[%clk 0:00:56]}  Kd5 {[%clk 0:00:14]} 36. Kg4 {[%clk 0:00:29]}  Kxd4 {[%clk 0:00:14]} 37. Ne6+ {[%clk 0:00:27]}  Ke5 {[%clk 0:00:12]} 38. Nxg5 {[%clk 0:00:23]}  b4 {[%clk 0:00:12]} 39. Nh3 {[%clk 0:00:07]}  a3 {[%clk 0:00:12]} 40. bxa3 {[%clk 0:00:03]}  bxa3 {[%clk 0:00:10]} 41. Nf2 {[%clk 0:00:04]}  a2 {[%clk 0:00:04]} 42. Nd3+ {[%clk 0:00:05]}  Kd6 {[%clk 0:00:02]} 43. Ne5 {[%clk 0:00:03]}  a1=Q {[%clk 0:00:02]} 44. Nc4+ {[%clk 0:00:04]}  Kd5 {[%clk 0:00:01]} 45. Ne5 {[%clk 0:00:04]} 1-0


[Site "https://www.chess.com"]

[Event "Titled Tuesday Blitz December 27 Early 2022"]
[White "Osiecki, Stanislaw"]
[Black "Buscar, Michael"]
[WhiteFideId "1102990"]
[BlackFideId "2603616"]
[WhiteElo "2055"]
[BlackElo "2041"]
[Result "0-1"]
[Round "07"]
[TimeControl "180+2"]
[Date "2022.12.27"]
[WhiteClock "0:00:01"]
[BlackClock "0:00:17"]

1. e4 {[%clk 0:03:00]}  c6 {[%clk 0:02:59]} 2. d4 {[%clk 0:03:00]}  d6 {[%clk 0:02:59]} 3. f4 {[%clk 0:02:59]}  Nf6 {[%clk 0:02:58]} 4. e5 {[%clk 0:02:58]}  Nd5 {[%clk 0:02:57]} 5. c4 {[%clk 0:02:58]}  Nc7 {[%clk 0:02:57]} 6. Nf3 {[%clk 0:02:57]}  Bg4 {[%clk 0:02:57]} 7. Be2 {[%clk 0:02:56]}  b5 {[%clk 0:02:54]} 8. b3 {[%clk 0:02:56]}  g6 {[%clk 0:02:51]} 9. O-O {[%clk 0:02:53]}  Bg7 {[%clk 0:02:51]} 10. h3 {[%clk 0:02:53]}  Bd7 {[%clk 0:02:47]} 11. d5 {[%clk 0:02:45]}  O-O {[%clk 0:02:45]} 12. Bb2 {[%clk 0:02:43]}  bxc4 {[%clk 0:02:27]} 13. bxc4 {[%clk 0:02:36]}  Nba6 {[%clk 0:02:27]} 14. Ng5 {[%clk 0:02:22]}  Nc5 {[%clk 0:02:22]} 15. Nxf7 {[%clk 0:02:20]}  Rxf7 {[%clk 0:02:19]} 16. e6 {[%clk 0:02:20]}  N5xe6 {[%clk 0:02:18]} 17. dxe6 {[%clk 0:02:20]}  Nxe6 {[%clk 0:02:18]} 18. Bxg7 {[%clk 0:02:19]}  Nxg7 {[%clk 0:02:16]} 19. Nc3 {[%clk 0:02:15]}  Qa5 {[%clk 0:02:09]} 20. Ne4 {[%clk 0:02:02]}  Raf8 {[%clk 0:02:08]} 21. Qc1 {[%clk 0:01:51]}  Qf5 {[%clk 0:01:57]} 22. Ng5 {[%clk 0:01:47]}  Qc5+ {[%clk 0:01:53]} 23. Kh1 {[%clk 0:01:45]}  Rf6 {[%clk 0:01:50]} 24. Ne4 {[%clk 0:01:44]}  Qd4 {[%clk 0:01:44]} 25. Nxf6+ {[%clk 0:01:44]}  Rxf6 {[%clk 0:01:45]} 26. Qa3 {[%clk 0:01:19]}  Nf5 {[%clk 0:01:32]} 27. Bg4 {[%clk 0:01:09]}  h5 {[%clk 0:01:23]} 28. Bxf5 {[%clk 0:01:08]}  Rxf5 {[%clk 0:01:23]} 29. Rad1 {[%clk 0:00:56]}  Qb6 {[%clk 0:01:14]} 30. Rb1 {[%clk 0:00:54]}  Qd4 {[%clk 0:01:11]} 31. Rb8+ {[%clk 0:00:53]}  Kf7 {[%clk 0:01:08]} 32. Qb2 {[%clk 0:00:47]}  Qxb2 {[%clk 0:00:55]} 33. Rxb2 {[%clk 0:00:47]}  Be6 {[%clk 0:00:56]} 34. Rb4 {[%clk 0:00:42]}  a5 {[%clk 0:00:53]} 35. Ra4 {[%clk 0:00:42]}  Kf6 {[%clk 0:00:50]} 36. g4 {[%clk 0:00:40]}  hxg4 {[%clk 0:00:49]} 37. hxg4 {[%clk 0:00:39]}  Rc5 {[%clk 0:00:50]} 38. g5+ {[%clk 0:00:38]}  Kf5 {[%clk 0:00:50]} 39. Re1 {[%clk 0:00:36]}  Bxc4 {[%clk 0:00:46]} 40. Rxe7 {[%clk 0:00:33]}  Kxf4 {[%clk 0:00:45]} 41. Ra7 {[%clk 0:00:29]}  Kxg5 {[%clk 0:00:39]} 42. R7xa5 {[%clk 0:00:28]}  Bb5 {[%clk 0:00:39]} 43. Rd4 {[%clk 0:00:24]}  Rc1+ {[%clk 0:00:34]} 44. Kh2 {[%clk 0:00:23]}  d5 {[%clk 0:00:31]} 45. a4 {[%clk 0:00:19]}  Be2 {[%clk 0:00:31]} 46. Rd2 {[%clk 0:00:17]}  Bf3 {[%clk 0:00:28]} 47. Kg3 {[%clk 0:00:16]}  Be4 {[%clk 0:00:27]} 48. Ra7 {[%clk 0:00:13]}  Rc3+ {[%clk 0:00:26]} 49. Kf2 {[%clk 0:00:12]}  Kg4 {[%clk 0:00:23]} 50. a5 {[%clk 0:00:10]}  Rf3+ {[%clk 0:00:23]} 51. Ke2 {[%clk 0:00:10]}  Rh3 {[%clk 0:00:21]} 52. Rf7 {[%clk 0:00:07]}  Ra3 {[%clk 0:00:17]} 53. Ra7 {[%clk 0:00:05]}  c5 {[%clk 0:00:16]} 54. a6 {[%clk 0:00:05]}  c4 {[%clk 0:00:16]} 55. Ra8 {[%clk 0:00:01]}  c3 {[%clk 0:00:17]} 0-1


[Site "https://www.chess.com"]